Cogmind - Beta 13 @@@ ROGUE MODE // 2024.03.31 @ 20:33:44 Player: MasterLemons Result: Destroyed by D-53 Grenadier with Mini Grenade Launcher Performance ------------- Evolutions (0) 0 Regions Visited (2) 400 Robots Destroyed (10) 50 Value Destroyed (272) 272 Prototype IDs (5) 100 Alien Tech Used (0) 0 Bonus (0) 0 TOTAL SCORE: 822 Bonus ------- None Cogmind --------- Core Integrity 0/250 Matter 6/300 Energy 100/100 System Corruption 0% Temperature Cool (0) Movement Flying (115) Ox1 Location -10/Mines Parts ------- > --- POWER (1) -------- (None) > --- PROPULSION (2) --- VTOL Module > --- UTILITY (2) ------ Small Storage Unit Tractor Beam > --- WEAPON (2) ------- (None) > --- INVENTORY (8) ---- VTOL Module VTOL Module Weight Redist. System Weight Redist. System Weight Redist. System Seismic Detector Explosive Trap Peak State ------------ > --- POWER ------------ Ion Engine > --- PROPULSION ------- VTOL Module VTOL Module > --- UTILITY ---------- Small Storage Unit Weight Redist. System > --- WEAPON ----------- Rocket Launcher Rocket Launcher > --- INVENTORY -------- VTOL Module VTOL Module Weight Redist. System Rocket Launcher Rocket Launcher [Rating: 13] Favorites ----------- Power Light Ion Engine Engine Light Ion Engine Propulsion VTOL Module Treads Light Treads Flight Unit VTOL Module Utility Small Storage Unit Device Tractor Beam Storage Small Storage Unit Weapon Rocket Launcher Energy Gun Small Laser Ballistic Gun Light Assault Rifle Launcher Rocket Launcher Special Melee Weapon Datajack Build | -11 -10 -10 ------- Run | Yrd Mat Min Slots Evolved . | . . . Power . | . . . Propulsion . | . . . Utility . | . . . Weapon . | . . . Parts Attached 21 | 6 10 5 Power 3 | 1 1 1 Engine 3 | 1 1 1 Core . | . . . Reactor . | . . . Propulsion 4 | 2 2 . Treads 2 | 2 . . Leg . | . . . Wheel . | . . . Hover . | . . . Flight 2 | . 2 . Utility 3 | 1 1 1 Device 2 | . 1 1 Storage 1 | 1 . . Processor . | . . . Hackware . | . . . Protection . | . . . Artifact . | . . . Weapon 11 | 2 6 3 Energy Gun 2 | 1 1 . Energy Cannon . | . . . Ballistic Gun 2 | 1 1 . Ballistic Cannon . | . . . Launcher 5 | . 2 3 Special Weapon . | . . . Impact Weapon . | . . . Slashing Weapon . | . . . Piercing Weapon . | . . . Special Melee Weapon 2 | . 2 . Unidentified Prototypes . | . . . Parts Lost 9 | . . 9 Power 2 | . . 2 Propulsion 1 | . . 1 Utility 1 | . . 1 Weapon 5 | . . 5 Highest Loss Streak 5 | . . 5 To Critical Strikes . | . . . Average Slot Usage (%) 92 | . 89 95 Engine 13 | . 14 12 Treads 8 | . 18 . Flight 19 | . 9 27 Device 9 | . 4 13 Storage 14 | . 14 14 Energy Gun 3 | . 8 . Ballistic Gun 3 | . 8 . Launcher 18 | . 9 25 Naked Turns . | . . . Heaviest Build 18 | 10 18 18 Greatest Support 40 | 40 40 14 Greatest Overweight (x) 2 | 1 1 2 Average Overweight (x) 1 | . . 1 Largest Inventory Capacity 8 | 8 8 8 Average Capacity 7 | 7 8 8 Most Carried 8 | 6 8 8 Average Carried 5 | 1 4 6 Final Capacity 8 | 8 8 8 Final Carried 8 | 1 8 7 Class Distribution -------------------- 100% | Mutant Dominant Class ---------------- Mutant | -10/Materials Mutant | -10/Mines Resources | -11 -10 -10 ----------- Run | Yrd Mat Min Matter Collected 439 | 210 191 38 Remotely 12 | . . 12 Salvage Created 268 | . 234 34 Parts 14 | . 10 4 Haulers Intercepted . | . . . Recyclers Shooed . | . . . Parts Field Recycled . | . . . Retrieved Matter . | . . . Parts Self-Destructed . | . . . Prevented . | . . . Kills | -11 -10 -10 ------- Run | Yrd Mat Min Combat Hostiles Destroyed 15 | . 6 9 Guns 3 | . 3 . AOE 12 | . 3 9 Classes Destroyed 6 | . 4 2 Tunneler 1 | . . 1 Recycler 1 | . 1 . Operator 1 | . 1 . Watcher 1 | . 1 . Grunt 6 | . 6 . Assembled 9 | . . 9 Best Kill Streak 10 | . 3 10 Combat Bots Only 9 | . 2 9 Max Kills in Single Turn 4 | . 2 4 Gunslinging . | . . . Exploded 4 | . 1 4 Melee . | . . . Uniques/NPCs Destroyed . | . . . Combat | -11 -10 -10 -------- Run | Yrd Mat Min Hostile Shots Fired 44 | . 17 27 Missed 12 | . 5 7 Damage Taken 934 | . 210 724 Core 260 | . 75 185 Absorbed by Shields . | . . . Core Remaining (%) 100 | 100 . . Volleys Fired 34 | . 23 11 Largest 2 | . 2 2 Hottest 66 | . 66 66 Shots Fired 64 | . 46 18 Gun 32 | . 32 . Cannon . | . . . Launcher 32 | . 14 18 Special . | . . . Kinetic 16 | . 16 . Thermal 16 | . 16 . Explosive 32 | . 14 18 Electromagnetic . | . . . Robot Hit Streak 4 | . 4 3 Robot Miss Streak 4 | . 4 4 Penetration Max . | . . . Secondary Targets . | . . . Shots Hit Robots 32 | . 24 8 Core Hits 40 | . 18 22 Critical Kills . | . . . Critical Parts Destroyed . | . . . Critical Strikes . | . . . Melee Attacks 1 | . 1 . Impact . | . . . Slashing . | . . . Piercing . | . . . Sneak Attacks 1 | . 1 . Combat Hostiles . | . . . Follow-up Attacks . | . . . Damage Inflicted 1636 | . 805 831 Guns 183 | . 183 . Cannons . | . . . Explosions 1453 | . 622 831 Melee . | . . . Ramming . | . . . Kinetic 53 | . 53 . Thermal 130 | . 130 . Explosive 1453 | . 622 831 Electromagnetic . | . . . Impact . | . . . Slashing . | . . . Piercing . | . . . Highest Corruption . | . . . Average Corruption . | . . . Corruption Purged . | . . . Corruption Blocked . | . . . Overload Shots . | . . . Overflow Damage 56 | . 13 43 Projectiles . | . . . Explosions 56 | . 13 43 Melee . | . . . Knockbacks . | . . . Impact . | . . . Kinetic . | . . . Secondary . | . . . Self-Inflicted Damage 239 | . 56 183 Shots 7 | . 2 5 Rammed . | . . . Targets Rammed . | . . . Kicked . | . . . Crushed . | . . . Highest Temperature 102 | . 102 14 Average Temperature 35 | . 37 10 Received Heat Transfer 84 | . 84 . Siege Activations . | . . . Robots Corrupted . | . . . Combat Hostiles . | . . . Parts Fried . | . . . Impact Corruptions . | . . . Robots Melted . | . . . Combat Hostiles . | . . . Parts Melted . | . . . Heat Transferred 300 | . 300 . Parts Sabotaged . | . . . Parts Stolen . | . . . Parts Stripped . | . . . Power Chain Reactions . | . . . Alert | -11 -10 -10 ------- Run | Yrd Mat Min Peak Influence 256 | . 256 85 Initial 46 | . . 46 Average 78 | . 122 54 Maximum Alert Level 1 | . 1 . Low Security (%) 95 | 100 88 100 Level 1 4 | . 11 . Level 2 . | . . . Level 3 . | . . . Level 4 . | . . . Level 5 . | . . . High Security . | . . . Max Security . | . . . Squads Dispatched 3 | . 3 . Investigation 3 | . 3 . Extermination . | . . . Reinforcement . | . . . Assault . | . . . Garrison . | . . . Intercept . | . . . Searches Triggered . | . . . Construction Impeded . | . . . Haulers Reinforced . | . . . Active Scanning Responses . | . . . Cargo Convoy Interrupts . | . . . Stealth | -11 -10 -10 --------- Run | Yrd Mat Min Distress Signals . | . . . Communications Jammed . | . . . Distress Signals . | . . . Times Spotted 24 | . 12 12 Peak Tracking Total 7 | . 3 7 Tactical Retreats . | . . . Traps | -11 -10 -10 ------- Run | Yrd Mat Min Traps Triggered . | . . . Indirectly . | . . . Trap Hack Attempts . | . . . Triggered . | . . . Disarmed . | . . . Reprogrammed . | . . . Reused . | . . . Traps Extracted . | . . . Installed . | . . . Triggered . | . . . Most Traps Carried 1 | . . 1 Machines | -11 -10 -10 ---------- Run | Yrd Mat Min Machines Disabled 1 | . 1 . Max in Single Turn 1 | . 1 . Machines Repaired . | . . . Machines Dismantled . | . . . Machines Sabotaged . | . . . Overloaded Fab Kills . | . . . Hacking | -11 -10 -10 --------- Run | Yrd Mat Min Machines Accessed 4 | . 4 . Terminals 4 | . 4 . Fabricators . | . . . Repair Stations . | . . . Recycling Units . | . . . Scanalyzers . | . . . Garrison Access . | . . . Total Hacks 14 | . 14 . Successful 8 | . 8 . Failed 6 | . 6 . Catastrophic 1 | . 1 . Database Lockouts . | . . . Manual . | . . . Terminals 14 | . 14 . Fabricators . | . . . Repair Stations . | . . . Recycling Units . | . . . Scanalyzers . | . . . Garrison Access . | . . . Terminal Hacks 8 | . 8 . Record 2 | . 2 . Prototype ID Bank 3 | . 3 . Locate Traps 1 | . 1 . Zone Layout 2 | . 2 . Fabricator Hacks . | . . . Repair Station Hacks . | . . . Recycling Unit Hacks . | . . . Scanalyzer . | . . . Garrison Access Hacks . | . . . Unauthorized Hacks . | . . . Terminals . | . . . Fabricators . | . . . Repair Stations . | . . . Recycling Units . | . . . Scanalyzers . | . . . Garrison Access . | . . . Data Cores Recovered . | . . . Used . | . . . Hacking Detections 3 | . 3 . Full Trace Events 3 | . 3 . Feedback Events . | . . . Feedback Blocked . | . . . Robot Schematics Acquired . | . . . Robots Built . | . . . Authchips . | . . . Time . | . . . Total Robot Build Rating . | . . . Part Schematics Acquired . | . . . Parts Built . | . . . Authchips . | . . . Time . | . . . Total Part Build Rating . | . . . Parts Repaired . | . . . Time . | . . . Parts Recycled . | . . . Recycled Matter . | . . . Retrieved Matter . | . . . Retrieved Components . | . . . Parts Scanalyzed . | . . . Part Schematics Acquired . | . . . Parts Damaged . | . . . Bothacking | -11 -10 -10 ------------ Run | Yrd Mat Min Used RIF Installer . | . . . Robots Hacked 1 | . 1 . Non-combat 1 | . 1 . Combat . | . . . Robot Hacks Applied 1 | . 1 . parse_system 1 | . 1 . Relay Couplers Released . | . . . Fabnet Peak Effective % . | . . . Robots Rewired . | . . . Allies Hacked . | . . . Hacks Repelled . | . . . Allies | -11 -10 -10 -------- Run | Yrd Mat Min Total Allies . | . . . Largest Group . | . . . Highest-Rated Group . | . . . Highest-Rated Ally . | . . . Total Orders . | . . . Ally Attacks . | . . . Total Damage . | . . . Kills . | . . . Allies Corrupted . | . . . Allies Melted . | . . . Intel | -11 -10 -10 ------- Run | Yrd Mat Min Robot Analysis Total . | . . . Derelict Logs Recovered 2 | . . 2 Drone Launches . | . . . Drone Recoveries . | . . . Exploration | -11 -10 -10 ------------- Run | Yrd Mat Min Turns Passed 1069 | 77 436 556 Spaces Moved 607 | 52 245 310 Core 21 | 21 . . Treads 165 | 31 134 . Legs . | . . . Wheels . | . . . Hover . | . . . Flight 421 | . 111 310 Fastest Speed 32 | 50 32 32 Average Speed 150 | 120 137 165 Slowest Speed 192 | 160 160 192 Overloaded Moves . | . . . Propulsion Burnouts . | . . . Robots Hopped . | . . . Cave-ins Triggered . | . . . Exploration Rate (%) 38 | 4 43 68 Regions Visited 2 Branch Regions 1 Pre-discovered Areas 1 | . . 1 Known Exits Taken . | . . . Unknown Exits Taken 2 | 1 1 . Scrap Searched . | . . . Spaces Dug . | . . . Terrain Destroyed 203 | . 49 154 Melee . | . . . Projectile . | . . . AOE 203 | . 49 154 Terrain Rammed . | . . . Walls Destroyed . | . . . Machines Disabled . | . . . Actions | -11 -10 -10 --------- Run | Yrd Mat Min Total 702 | 66 302 334 Wait 5 | 3 . 2 Move 605 | 51 244 310 Hop . | . . . Pick Up 27 | 6 16 5 Fast Attach 1 | 1 . . Attach 13 | 5 3 5 Detach . | . . . Swap 7 | . 7 . Drop 9 | . 8 1 Fire 34 | . 23 11 Melee 1 | . 1 . Ram . | . . . Kick . | . . . Crush . | . . . Escape Stasis . | . . . Rewire . | . . . Trap . | . . . Miscellaneous . | . . . Route ------- -11/Scrapyard -10/Materials (discovered 2 exits: [*Mat] / [*Min]) -10/Mines (discovered 1 exit: [*Mat]) History --------- Turn | Location | Event 8 | -11/Scrapyard | Discovered new exit (range 13) 78 | -11/Scrapyard | Entered Materials 212 | -10/Materials | Discovered new exit (range 16) 303 | -10/Materials | Build established: Mutant 469 | -10/Materials | Discovered new exit (range 16) 514 | -10/Materials | Entered Mines 515 | -10/Mines | Assembled infested the area 552 | -10/Mines | Core integrity fell below 50% 593 | -10/Mines | Destroyed 9 combat bots 603 | -10/Mines | Lost 5 parts (1p1u3w) 653 | -10/Mines | Received a Rocket Launcher from a helpful Derelict 673 | -10/Mines | Learned location of Storage (-7) 694 | -10/Mines | Learned 4 Materials zone layouts 796 | -10/Mines | Discovered new exit (range 14) 940 | -10/Mines | Found a hidden stash of uninstalled traps 1067 | -10/Mines | Core integrity fell below 20% 1070 | -10/Mines | Destroyed by D-53 Grenadier with Mini Grenade Launcher Last Messages --------------- 7Q-LDR(g): "Need to get rid of a swarm? Done. Need a big hole in the wall? Done." 7Q-LDR(g): "Need a small hole in the wall? Leave that to the mining laser wimps, I say!" 7Q-LDR(g): "Would you like a rocket launcher? I know I would if I were you, so I'm going to lend you mine." 7Q-LDR(g) slips back into the shadows. Acquired Rocket Launcher. Acquired derelict log, extracted data. World map updated: -7/Storage. Acquired derelict log, extracted data. Data stored: Materials zone layouts (x4). K-01 Serf collects debris. EXIT=FOUND A stash of uninstalled traps is collected here! Acquired Explosive Trap. Rocket Launcher destroyed. VTOL Module destroyed. Lgt. Ion Engine destroyed. Rocket Launcher destroyed. Map ----- +----------------------------------------------------+ | | | | | | | | | | | | | ????????????????????????????????????????????????? | | ????????????????????????????????????????????????? | | ????????????????????????????????????????????????? | | ????????????????????????????????????????????????? | | ????????????????????????????????????????????????? | | ????????????????????????????????????????????????? | | ????????????????????????????????????????????????? | | ????????????????????????????????????????????????? | | ????????????????????????????????????????????????? | | ????????????????????????????????????????????????? | | ????????????????????????????????????????????????? | | ????????????????????????????????????????????????? | | ???????????????????????????????????? ?????????? | | ?????????????????????????????????? ?????????? | | ???????????????????????######???? ?????????? | | ?????????????????????### ##? ????????? | | ????????????????????## # d #?????????? | | ##?????????????????## d #??????????? | | ##????????????????# ???????? | | ##??????????????## @ ???????? | | ################ #???????? | | # k #?????????? | | # ##??????????????? | | #################### ##?##???????????????? | | ##??????????????????#######???????????????????? | | ##?????????????????????????????????????????????? | | #??????????????????????????????????????????????? | | #??????????????????????????????????????????????? | | ##??????????????????????????????????????????????? | | ????????????????????????????????????????????????? | | ????????????????????????????????????????????????? | | ????????????????????????????????????????????????? | | ????????????????????????????????????????????????? | | ????????????????????????????????????????????????? | | ????????????????????????????????????????????????? | | ????????????????????????????????????????????????? | | ????????????????????????????????????????????????? | | ????????????????????????????????????????????????? | | ????????????????????????????????????????????????? | | ????????????????????????????????????????????????? | | ?# ?????????????????????????????????????????????? | | # ??????????????????# ????????????????????????? | | ???????????????# #??????????????????????? | | ???????????????? #??????????????????????? | +----------------------------------------------------+ Best States ------------- Heat Dissipation 25 Energy Generation 10 Energy Capacity 250 Matter Stores 300 Matter Capacity 300 Sight Range 16 Terrain Scan Density 10 Additional Mass Support 6 Evasion (%) 50 Recoil Reduction 2 Item Schematics ----------------- None Robot Schematics ------------------ None Fabricated ------------ Nothing Alien Tech Used ----------------- None Achievements -------------- None Challenges ------------ None Game ------ Seed TrapActuatorRipper Manual? 0 Play Time 00:13:58 Cumulative 2.4 hours Start 2024.03.31 @ 20:20:04 End 2024.03.31 @ 20:33:44 Sessions 1 Manual Loads 0 Difficulty Rogue Special Mode None Game No. 10 Rogue 7 Adventurer 3 Explorer 0 Win Type - Total 0 Types 0/0/0/0/0/0/0/0/0 Lore% 2 Gallery% 4 Achievement% 8 Wizard Run 0 Options --------- Layout 1 ASCII 0 Keyboard 0 Movement Mouse Keybinds 0 Fullscreen 1 Font 32/SmallcapsGlow Map View 77x35 Zoom Use 0% Tactical HUD 0 Map Filters NONE Filters NONE Steam 1 RUN: 7444e6f4-8d59-4e69-85a0-e6c474f69c1c